Cogmind - Beta 13 @@@ ROGUE MODE // 2024.04.04 @ 22:58:24 Player: J1ang-5h1 Result: Destroyed by G-73 Enforcer with Phase Gun Performance ------------- Evolutions (6) 3000 Regions Visited (20) 4000 Robots Destroyed (164) 820 Value Destroyed (7186) 7186 Prototype IDs (59) 1180 Alien Tech Used (2) 400 Bonus (5166) 5166 TOTAL SCORE: 21752 Bonus ------- High Alert Combat Kills 34 Follower Combat Kills 615 Aligned with FarCom 300 Met Imprinter 300 Met Zhirov 300 Met Warlord at Base 500 MAIN.C Attacked Warlord 500 Warlord Defense Kills 2928 Friendly Fire -311 Cogmind --------- Core Integrity 0/1150 Matter 300/300 Energy 223/450 System Corruption 6% Temperature Cool (0) Movement Core (1150) Ox22 Location -4/Warlord Parts ------- > --- POWER (2) -------- (None) > --- PROPULSION (6) --- (None) > --- UTILITY (9) ------ High-capacity Storage Unit Energy Well Tactical Coordination Suite > --- WEAPON (2) ------- YOLO Cannon > --- INVENTORY (20) --- Compact Matter Pod (150) Advanced Transmission Jammer Improved Hacking Suite Hacking Drone Bay (1/1) Minesniffer Drone Bay (10/10) Mini Smartbomb Launcher Lance Peak State ------------ > --- POWER ------------ Neutrino Core Heavy Antimatter Reactor > --- PROPULSION ------- Advanced Medium Treads Antigrav System Cooled Gravmag System Cooled Gravmag System Cooled Gravmag System Improved Linear Gravjet > --- UTILITY ---------- Advanced Heat Sink High-capacity Storage Unit Advanced Targeting Computer Improved Target Analyzer Advanced Reaction Control System Experimental Power Shielding Improved Hardlight Generator Advanced Hacking Suite Advanced System Shield > --- WEAPON ----------- Advanced Plasma Cannon Enhanced Gauss Cannon > --- INVENTORY -------- Compact Battery Compact Matter Pod Tactical Coordination Suite Improved Target Analyzer Precision Matter Filter Improved Kinecellerator Weapon Cycler Focal Shield Advanced Shield Generator Hacking Drone Bay Transdimensional Reconstructor Integrated Dissipator YOLO Cannon Mini Smartbomb Launcher RU-N14's Throwing Claymores RU-N14's Throwing Claymores RU-N14's Throwing Claymores RU-N14's Throwing Claymores Lance [Rating: 125] Favorites ----------- Power Light Antimatter Reactor Engine Ion Engine Power Core Micro Fission Core Reactor Light Antimatter Reactor Propulsion Light Treads Treads Light Treads Leg Flexi-carbon Leg Wheel Compact Wheel Hover Unit Cooled Gravmag System Utility High-capacity Storage Unit Device Improved Heat Sink Storage High-capacity Storage Unit Processor Advanced Targeting Computer Hackware Advanced Hacking Suite Protection Improved Medium Armor Plating Weapon Advanced Plasma Cannon Energy Gun Medium Laser Energy Cannon Advanced Plasma Cannon Ballistic Gun Enhanced Autogun Ballistic Cannon Gauss Cannon Launcher Mini Smartbomb Launcher Special Weapon RU-N14's Throwing Claymores v3 Impact Weapon Makeshift Hammer Slashing Weapon Axe Piercing Weapon Lance Build | -11 -10 -10 -10 -9 -8 -7 -6 -6 -6 -6 -5 -5 -5 -5 -5 -4 -4 -4 -4 -4 ------- Run | Yrd Mat Min Exi Min Mat Fac Fac Low Low Zio Pro Fac Upp Upp Zhi Pro Fac Upp Upp War Slots Evolved 12 | . . . . . 4 2 2 . . . . 2 . . . . 2 . . . Power 1 | . . . . . . . 1 . . . . . . . . . . . . . Propulsion 4 | . . . . . 2 . . . . . . 2 . . . . . . . . Utility 7 | . . . . . 2 2 1 . . . . . . . . . 2 . . . Weapon . | . . . . . . . . . . . . . . . . . . . . . Parts Attached 197 | . 10 . 2 . 19 7 3 4 5 10 14 30 5 7 13 4 18 4 12 30 Power 22 | . 2 . 1 . 1 1 1 . . 1 3 2 1 1 1 . 1 1 3 2 Engine 7 | . 2 . 1 . 1 1 . . . 1 . . 1 . . . . . . . Core 6 | . . . . . . . 1 . . . 1 2 . 1 . . 1 . . . Reactor 9 | . . . . . . . . . . . 2 . . . 1 . . 1 3 2 Propulsion 39 | . 2 . . . 7 2 . . 2 1 3 9 . . 4 . 4 . 2 3 Treads 23 | . 2 . . . 7 2 . . 1 1 3 3 . . . . 2 . 1 1 Leg 4 | . . . . . . . . . . . . 3 . . . . . . . 1 Wheel 4 | . . . . . . . . . 1 . . 3 . . . . . . . . Hover 8 | . . . . . . . . . . . . . . . 4 . 2 . 1 1 Flight . | . . . . . . . . . . . . . . . . . . . . . Utility 66 | . 4 . 1 . 6 2 1 2 . 1 3 9 . 6 5 3 7 3 5 8 Device 36 | . . . . . 3 1 1 . . . . 6 . 5 4 2 3 1 4 6 Storage 4 | . 1 . 1 . . . . . . 1 . . . . . . . . . 1 Processor 4 | . . . . . 2 . . . . . . . . . . . 1 . 1 . Hackware 2 | . . . . . . . . . . . . . . . . . 2 . . . Protection 20 | . 3 . . . 1 1 . 2 . . 3 3 . 1 1 1 1 2 . 1 Artifact . | . . . . . . . . . . . . . . . . . . . . . Weapon 70 | . 2 . . . 5 2 1 2 3 7 5 10 4 . 3 1 6 . 2 17 Energy Gun 11 | . 1 . . . 1 . . . 1 . . . . . . . . . . 8 Energy Cannon 6 | . . . . . . . . . . . . 2 1 . 2 . . . . 1 Ballistic Gun 14 | . 1 . . . 3 1 1 1 1 . 1 1 2 . . . 1 . 1 . Ballistic Cannon 13 | . . . . . . . . . . 4 2 3 . . . . 3 . . 1 Launcher 10 | . . . . . 1 . . 1 . . 2 3 1 . . 1 . . . 1 Special Weapon 7 | . . . . . . . . . . 2 . . . . . . . . . 5 Impact Weapon 2 | . . . . . . . . . 1 1 . . . . . . . . . . Slashing Weapon 1 | . . . . . . 1 . . . . . . . . . . . . . . Piercing Weapon 6 | . . . . . . . . . . . . 1 . . 1 . 2 . 1 1 Special Melee Weapon . | . . . . . . . . . . . . . . . . . . . . . Unidentified Prototypes 14 | . . . . . 1 . . . . 1 . 1 . . 4 . 1 . . 6 Corrupted Parts 1 | . . . . . . . . . . . 1 . . . . . . . . . System Corruption 2 | . . . . . . . . . . . 2 . . . . . . . . . Parts Lost 75 | . 2 . . . 4 . . 2 1 . 1 15 2 7 . 7 2 2 7 23 Power 8 | . 1 . . . . . . . . . . 3 . 2 . . . . . 2 Propulsion 26 | . . . . . . . . . 1 . . 6 1 3 . 3 1 . 3 8 Utility 32 | . 1 . . . 3 . . 2 . . 1 5 . 2 . 3 1 2 3 9 Weapon 9 | . . . . . 1 . . . . . . 1 1 . . 1 . . 1 4 Highest Loss Streak 20 | . 1 . . . 1 . . 1 1 . 1 7 2 5 . 5 2 1 7 20 To Critical Strikes 2 | . . . . . . . . . . . . . . . . . 1 . . 1 Average Slot Usage (%) 91 | . 98 100 100 100 97 91 92 93 93 92 94 93 89 74 64 95 89 100 92 90 Engine 4 | . 14 14 14 14 9 7 6 6 6 5 5 . 5 1 . . . . . . Core 2 | . . . . . . . 6 6 6 6 5 8 5 5 5 5 5 2 . . Reactor 2 | . . . . . . . . . . . . 1 . . . 5 5 7 9 9 Treads 15 | . 2 28 28 28 36 29 26 26 23 25 26 16 12 7 5 4 3 10 9 9 Leg 4 | . 25 . . . . . . . . . . 8 11 7 5 3 . . . . Wheel 1 | . . . . . . . . . 2 . . 5 5 4 . . . . . . Hover 5 | . . . . . . . . . . . . . . . 3 21 19 21 14 14 Device 9 | . . . . . . 7 13 6 6 6 3 8 11 11 12 22 16 12 19 19 Storage 6 | . 14 14 14 14 9 7 6 6 6 6 6 5 5 5 5 5 5 5 5 5 Processor 8 | . . . . . 15 15 13 13 13 13 13 11 11 11 10 5 8 10 5 4 Hackware 2 | . . . . . . . . . . . . . . . . . 9 10 10 9 Protection 8 | . 12 14 14 14 9 7 6 12 13 13 17 10 5 2 5 4 5 7 5 4 Energy Gun 3 | . 6 14 14 14 9 7 6 6 6 1 . . . . . . 1 . . 5 Energy Cannon 2 | . . . . . . . . . . . . 3 9 11 2 9 4 . . . Ballistic Gun 5 | . 21 14 14 14 8 6 5 5 5 1 . 4 1 . . . . 5 4 1 Ballistic Cannon 1 | . . . . . . . . . . 9 12 1 . . . . 1 5 1 . Naked Turns . | . . . . . . . . . . . . . . . . . . . . . Heaviest Build 112 | 11 52 52 52 52 57 77 86 86 87 95 89 91 91 100 103 107 103 102 111 112 Greatest Support 96 | 20 40 40 40 40 80 88 88 88 88 88 96 96 53 53 42 42 54 43 43 42 Greatest Overweight (x) 25 | . 2 1 1 1 . 1 . . 5 5 . 5 5 25 25 3 4 2 16 22 Average Overweight (x) 2 | . 1 1 1 1 . . . . 2 1 . 4 3 5 8 2 1 2 7 3 Largest Inventory Capacity 20 | 8 20 20 20 20 20 20 20 20 20 20 20 20 20 20 20 20 20 20 20 20 Average Capacity 19 | 8 19 20 20 20 20 20 20 20 20 20 20 20 20 20 20 20 20 20 20 20 Most Carried 20 | 6 20 19 20 20 20 20 20 19 20 20 20 20 20 20 20 20 20 20 20 20 Average Carried 19 | 6 16 19 19 20 19 19 18 18 19 19 19 19 19 19 19 18 19 19 19 19 Final Capacity 20 | 8 20 20 20 20 20 20 20 20 20 20 20 20 20 20 20 20 20 20 20 20 Final Carried 20 | 6 19 19 20 20 19 20 19 17 20 20 20 20 20 20 20 17 20 19 20 7 Class Distribution -------------------- 50% | Scavenger-Mutant 27% | Hacker-Mutant 22% | Mutant Dominant Class ---------------- Mutant | -10/Materials Mutant | -10/Mines Mutant | -10/Exiles Mutant | -9/Mines Scavenger-Mutant | -8/Materials Mutant | -7/Factory Scavenger-Mutant | -6/Factory Scavenger-Mutant | -6/Lower Caves Scavenger-Mutant | -6/Lower Caves Scavenger-Mutant | -6/Zion Scavenger-Mutant | -5/Proximity Caves Scavenger-Mutant | -5/Factory Scavenger-Mutant | -5/Upper Caves Scavenger-Mutant | -5/Upper Caves Scavenger-Mutant | -5/Zhirov Scavenger-Mutant | -4/Proximity Caves Hacker-Mutant | -4/Factory Hacker-Mutant | -4/Upper Caves Hacker-Mutant | -4/Upper Caves Hacker-Mutant | -4/Warlord Resources | -11 -10 -10 -10 -9 -8 -7 -6 -6 -6 -6 -5 -5 -5 -5 -5 -4 -4 -4 -4 -4 ----------- Run | Yrd Mat Min Exi Min Mat Fac Fac Low Low Zio Pro Fac Upp Upp Zhi Pro Fac Upp Upp War Matter Collected 5501 | 200 300 38 202 . 531 150 30 153 93 57 493 809 366 200 416 319 282 313 274 275 Remotely . | . . . . . . . . . . . . . . . . . . . . . Salvage Created 6330 | . 539 52 . . 826 337 30 246 63 . 343 839 332 477 301 374 370 285 508 408 Parts 269 | . 37 3 . . 40 11 3 17 3 . 7 59 11 16 3 14 19 5 9 12 Haulers Intercepted 1 | . 1 . . . . . . . . . . . . . . . . . . . Recyclers Shooed 1 | . . . . . 1 . . . . . . . . . . . . . . . Parts Field Recycled . | . . . . . . . . . . . . . . . . . . . . . Retrieved Matter . | . . . . . . . . . . . . . . . . . . . . . Parts Self-Destructed 94 | . . . . . . . . 17 4 2 18 . 11 16 2 15 . 4 5 . Prevented 2 | . . . . . . . . . . . 2 . . . . . . . . . Kills | -11 -10 -10 -10 -9 -8 -7 -6 -6 -6 -6 -5 -5 -5 -5 -5 -4 -4 -4 -4 -4 ------- Run | Yrd Mat Min Exi Min Mat Fac Fac Low Low Zio Pro Fac Upp Upp Zhi Pro Fac Upp Upp War Combat Hostiles Destroyed 149 | . 9 3 . . 19 6 . 11 1 . 10 22 8 10 . 11 4 5 5 25 Guns 53 | . 9 3 . . 15 6 . 8 1 . . 5 1 . . . . 2 1 2 Cannons 44 | . . . . . . . . . . . 5 8 4 8 . 8 4 3 4 . AOE 47 | . . . . . 4 . . 3 . . 5 7 3 1 . 3 . . . 21 Classes Destroyed 20 | . 6 . . . 1 2 . . 1 . 2 3 . . . . . . 1 4 Worker 2 | . . . . . . . . . . . . 2 . . . . . . . . Tunneler 1 | . 1 . . . . . . . . . . . . . . . . . . . Hauler 1 | . 1 . . . . . . . . . . . . . . . . . . . Recycler 4 | . 2 . . . . 1 . . . . . . . . . . 1 . . . Operator 1 | . . . . . . . . . . . . 1 . . . . . . . . Watcher 5 | . 3 . . . 1 . 1 . . . . . . . . . . . . . Swarmer 50 | . 6 3 . . 4 2 . 11 . . 3 8 4 3 . 6 . . . . Saboteur 6 | . . . . . . . . . . . . . . . . . . . . 6 Grunt 41 | . 3 . . . 10 2 . . . . 4 3 3 6 . . . 2 2 6 Brawler 5 | . . . . . . 1 . . . . 1 . . 1 . . . . . 2 Duelist 1 | . . . . . . . . . . . 1 . . . . . . . . . Protector 3 | . . . . . . . . . . . 1 . . . . . . . . 2 Sentry 12 | . . . . . 5 . . . . . . 2 . . . 1 2 1 1 . Demolisher 2 | . . . . . . . . . . . . . . . . . . . . 2 Hunter 9 | . . . . . . . . . . . . 2 1 . . 2 . 2 2 . Programmer 17 | . . . . . . 1 . . . . . 7 . . . 2 2 . . 5 Striker 1 | . . . . . . . . . . . . . . . . . . . . 1 Executioner 1 | . . . . . . . . . . . . . . . . . . . . 1 Decomposer 3 | . . . . . . . . . . . . . 2 . . . . . 1 . Samaritan 1 | . . . . . . . . . . . . . . . . . . . 1 . Thug 1 | . . . . . . . . . . . 1 . . . . . . . . . Mutant 1 | . . . . . . . . . 1 . . . . . . . . . . . Best Kill Streak 15 | . 5 3 . . 4 4 1 4 1 . 4 5 4 3 . 4 3 3 3 15 Combat Bots Only 15 | . 3 3 . . 4 3 . 4 1 . 4 4 4 3 . 4 2 3 3 15 Max Kills in Single Turn 4 | . 1 2 . . 3 1 1 2 1 . 3 4 1 2 . 1 2 1 1 4 Gunslinging 1 | . . 1 . . 1 . . . . . . . . . . . . . . . Exploded 4 | . . . . . 3 . . 2 . . 3 3 1 1 . 1 . . . 4 Melee . | . . . . . . . . . . . . . . . . . . . . . Uniques/NPCs Destroyed . | . . . . . . . . . . . . . . . . . . . . . Combat | -11 -10 -10 -10 -9 -8 -7 -6 -6 -6 -6 -5 -5 -5 -5 -5 -4 -4 -4 -4 -4 -------- Run | Yrd Mat Min Exi Min Mat Fac Fac Low Low Zio Pro Fac Upp Upp Zhi Pro Fac Upp Upp War Hostile Shots Fired 1039 | . 70 19 . . 98 23 . 55 24 . 48 181 31 55 . 90 17 106 61 161 Missed 313 | . 15 6 . . 25 6 . 16 4 . 16 53 12 13 . 30 10 37 18 52 Damage Taken 13189 | . 586 110 . . 1124 287 . 632 338 . 648 2561 327 767 . 787 137 1096 487 3302 Core 1797 | . 83 . . . 81 31 . 14 . . 35 355 . 58 . 66 . 133 20 921 Absorbed by Shields 594 | . . . . . 4 . . . . . . 16 . . . 180 30 . 73 291 Redirected to Shielding 249 | . . . . . . . . . . . . . . 23 . 177 36 13 . . Ignored by Resistances 387 | . . . . . . . . . . . . 70 . . . 14 . 161 114 28 Regen/Repaired (Parts) 246 | . 143 . . . . . . . . . . . . . . . . . . 103 Core Remaining (%) 82 | 100 . . . 66 85 95 . . . . 94 . . . . 52 . . . . Volleys Fired 452 | . 69 5 . . 69 20 3 27 9 . 25 86 17 23 . 28 8 19 19 25 Largest 2 | . 2 2 . . 2 2 2 2 2 . 2 2 2 2 . 2 2 2 2 2 Hottest 188 | . 70 70 . . 88 88 88 96 94 . 96 131 188 188 . 188 155 90 90 188 Shots Fired 820 | . 137 10 . . 132 40 6 53 18 . 42 138 30 45 . 47 16 38 33 35 Gun 513 | . 137 10 . . 131 40 6 51 18 . 1 58 7 . . . . 19 14 21 Cannon 268 | . . . . . . . . . . . 31 75 20 45 . 39 16 19 19 4 Launcher 31 | . . . . . 1 . . 2 . . 10 5 3 . . 8 . . . 2 Special 8 | . . . . . . . . . . . . . . . . . . . . 8 Kinetic 473 | . 131 5 . . 68 20 3 25 8 . 32 95 7 . . . 8 38 33 . Thermal 304 | . 6 5 . . 63 20 3 26 10 . . 38 20 45 . 39 8 . . 21 Explosive 39 | . . . . . 1 . . 2 . . 10 5 3 . . 8 . . . 10 Electromagnetic . | . . . . . . . . . . . . . . . . . . . . . Entropic 4 | . . . . . . . . . . . . . . . . . . . . 4 Robot Hit Streak 15 | . 8 3 . . 15 10 2 3 9 . 7 12 10 6 . 11 13 8 5 10 Robot Miss Streak 4 | . 3 3 . . 3 2 2 3 1 . 2 3 1 2 . 3 1 1 3 4 Penetration Max 1 | . . . . . . . . . . . 1 . . . . . . . 1 . Secondary Targets 5 | . 1 1 . . 1 . . 2 . . . . . . . . . . . . Max Gunslinging Chain 1 | . 1 1 . . 1 . . 1 . . . . . . . . . . . . Shots Hit Robots 546 | . 87 5 . . 98 33 3 24 15 . 24 81 23 26 6 36 9 28 25 23 Core Hits 324 | . 32 3 . . 47 13 2 16 4 . 26 33 17 15 3 16 7 12 16 62 Critical Kills 3 | . . . . . . . . . . . . . . . . . . 2 . 1 Critical Parts Destroyed 4 | . . . . . . . . . . . 2 1 . . . . . . . 1 Critical Strikes 25 | . . . . . 2 2 . . . . 6 2 . . 1 . 2 3 5 2 Burn 4 | . . . . . 2 2 . . . . . . . . . . . . . . Meltdown 1 | . . . . . . . . . . . . . . . . . . . . 1 Destroy 5 | . . . . . . . . . . . 2 1 . . . . . 2 . . Blast 12 | . . . . . . . . . . . 4 1 . . . . 2 1 4 . Impale 2 | . . . . . . . . . . . . . . . 1 . . . 1 . Detonate 1 | . . . . . . . . . . . . . . . . . . . . 1 Melee Attacks 75 | . . . . . . 2 . . 1 1 . 5 . . 7 . 7 . 6 46 Impact 2 | . . . . . . . . . 1 1 . . . . . . . . . . Slashing 2 | . . . . . . 2 . . . . . . . . . . . . . . Piercing 71 | . . . . . . . . . . . . 5 . . 7 . 7 . 6 46 Sneak Attacks 4 | . . . . . . . . . . . . . . . . . . . 3 1 Combat Hostiles . | . . . . . . . . . . . . . . . . . . . . . Follow-up Attacks . | . . . . . . . . . . . . . . . . . . . . . Damage Inflicted 22110 | . 939 64 . . 1679 605 57 590 297 . 1522 3425 1054 1092 436 1608 428 707 1002 6605 Guns 6006 | . 939 64 . . 1362 605 57 404 297 . . 1104 104 . . . . 342 155 573 Cannons 6083 | . . . . . . . . . . . 611 1542 505 955 . 986 363 365 447 309 Explosions 8857 | . . . . . 310 . . 186 . . 911 779 445 137 . 622 65 . . 5402 Melee 910 | . . . . . . . . . . . . . . . 436 . . . 400 74 Ramming 7 | . . . . . 7 . . . . . . . . . . . . . . . Kinetic 6197 | . 902 51 . . 678 276 37 170 118 . 611 1765 104 . . . 176 707 602 . Thermal 6715 | . 37 13 . . 684 329 20 234 179 . . 881 505 1092 . 986 252 . . 1503 Explosive 7880 | . . . . . 310 . . 186 . . 911 779 445 . . 622 . . . 4627 Electromagnetic . | . . . . . . . . . . . . . . . . . . . . . Impact . | . . . . . . . . . . . . . . . . . . . . . Slashing 247 | . . . . . . . . . . . . . . . . . . . . 247 Piercing 910 | . . . . . . . . . . . . . . . 436 . . . 400 74 Entropic 154 | . . . . . . . . . . . . . . . . . . . . 154 Highest Corruption 18 | . . . . . . 2 . . 1 1 2 13 13 16 16 18 . . . 6 Average Corruption 12 | . . . . . . 1 . . 1 1 2 9 13 13 16 16 . . . 5 Corruption Purged . | . . . . . . . . . . . . . . . . . . . . . Corruption Blocked . | . . . . . . . . . . . . . . . . . . . . . Effects 280 | . . . . . . . . . 2 . 1 70 43 80 54 25 . . . 5 Message Errors 56 | . . . . . . . . . . . . 12 12 15 12 3 . . . 2 Matter Fused 74 | . . . . . . . . . 1 . . 16 11 16 20 10 . . . . Heat Flow Errors 35 | . . . . . . . . . . . . 9 1 17 4 4 . . . . Energy Discharges 42 | . . . . . . . . . . . . 10 11 11 9 1 . . . . Parts Rejected 2 | . . . . . . . . . . . . . . 1 . . . . . 1 Parts Fused 2 | . . . . . . . . . . . . . . 1 1 . . . . . Data Loss (minor) 28 | . . . . . . . . . . . . 11 4 7 5 1 . . . . Data Loss (major) 12 | . . . . . . . . . . . . 1 2 5 2 2 . . . . Misfires 10 | . . . . . . . . . 1 . 1 2 . 4 . 1 . . . 1 Alerts 7 | . . . . . . . . . . . . 3 1 1 1 1 . . . . Misdirections 3 | . . . . . . . . . . . . 2 . 1 . . . . . . Weapon Failures 9 | . . . . . . . . . . . . 4 1 1 . 2 . . . 1 Overload Shots . | . . . . . . . . . . . . . . . . . . . . . Overflow Damage 598 | . . . . . 1 . . . . . 48 6 31 19 161 101 . . 64 167 Projectiles 158 | . . . . . . . . . . . 13 6 18 19 . 73 . . . 29 Explosions 215 | . . . . . 1 . . . . . 35 . 13 . . 28 . . . 138 Melee 225 | . . . . . . . . . . . . . . . 161 . . . 64 . Knockbacks 17 | . . . . . . . . . . . 5 7 . . . . . 4 1 . Impact . | . . . . . . . . . . . . . . . . . . . . . Kinetic 17 | . . . . . . . . . . . 5 7 . . . . . 4 1 . Secondary . | . . . . . . . . . . . . . . . . . . . . . Self-Inflicted Damage 198 | . . . . . 15 . . 40 . . 28 . . . . . . . . 115 Shots 5 | . . . . . 1 . . 1 . . 1 . . . . . . . . 2 Rammed 1 | . . . . . 1 . . . . . . . . . . . . . . . Targets Rammed 1 | . . . . . 1 . . . . . . . . . . . . . . . Kicked . | . . . . . . . . . . . . . . . . . . . . . Crushed . | . . . . . . . . . . . . . . . . . . . . . Highest Temperature 588 | . 137 90 . . 216 56 36 226 222 . 353 560 280 588 193 255 85 225 202 369 Average Temperature 111 | . 28 46 . . 60 23 21 94 78 . 219 117 86 145 92 76 44 106 109 154 Received Heat Transfer 2169 | . 270 . . . 546 36 . . 112 . 159 280 9 288 . 27 13 144 37 248 Effects 51 | . . . . . . . . . 1 . 13 21 . 10 . . . . . 6 Shutdowns 11 | . . . . . . . . . . . 4 5 . 2 . . . . . . Energy Bleed 6 | . . . . . . . . . . . 3 1 . . . . . . . 2 Interference 19 | . . . . . . . . . 1 . 4 5 . 5 . . . . . 4 Matter Decay 5 | . . . . . . . . . . . 1 3 . 1 . . . . . . Short Circuit 1 | . . . . . . . . . . . . . . 1 . . . . . . Damage (minor) 7 | . . . . . . . . . . . 1 5 . 1 . . . . . . Damage (major) 2 | . . . . . . . . . . . . 2 . . . . . . . . Siege Activations . | . . . . . . . . . . . . . . . . . . . . . Robots Corrupted . | . . . . . . . . . . . . . . . . . . . . . Combat Hostiles . | . . . . . . . . . . . . . . . . . . . . . Parts Fried . | . . . . . . . . . . . . . . . . . . . . . Impact Corruptions . | . . . . . . . . . . . . . . . . . . . . . Robots Melted 4 | . . . . . . . . . . . . 2 . 1 . . . . . 1 Combat Hostiles 4 | . . . . . . . . . . . . 2 . 1 . . . . . 1 Parts Melted 22 | . . 1 . . 4 2 . . . . . 5 2 . . 5 . . . 3 Heat Transferred 10162 | . 111 37 . . 1961 814 37 518 333 . . 1250 698 1432 . 1218 300 . . 1453 Parts Sabotaged 1 | . . . . . . . . . . . . . . . . . . . . 1 Parts Stolen . | . . . . . . . . . . . . . . . . . . . . . Parts Stripped . | . . . . . . . . . . . . . . . . . . . . . Power Chain Reactions . | . . . . . . . . . . . . . . . . . . . . . Alert | -11 -10 -10 -10 -9 -8 -7 -6 -6 -6 -6 -5 -5 -5 -5 -5 -4 -4 -4 -4 -4 ------- Run | Yrd Mat Min Exi Min Mat Fac Fac Low Low Zio Pro Fac Upp Upp Zhi Pro Fac Upp Upp War Peak Influence 430 | . 129 81 . . 228 155 56 . . . . 430 . . . . 339 . . . Initial 144 | . . 11 . . . 65 14 . . . . 144 . . . . 44 . . . Average 115 | . 27 76 . . 83 52 31 . . . . 279 . . . . 122 . . . Maximum Alert Level 2 | . . . . . 1 . . . . . . 2 . . . . 1 . . . Low Security (%) 74 | 100 100 100 . 100 91 100 100 . . . . 17 . . . . 69 . . . Level 1 23 | . . . . . 8 . . . . . . 75 . . . . 30 . . . Level 2 1 | . . . . . . . . . . . . 6 . . . . . . . . Level 3 . | . . . . . . . . . . . . . . . . . . . . . Level 4 . | . . . . . . . . . . . . . . . . . . . . . Level 5 . | . . . . . . . . . . . . . . . . . . . . . High Security . | . . . . . . . . . . . . . . . . . . . . . Max Security . | . . . . . . . . . . . . . . . . . . . . . Squads Dispatched 17 | . 1 . . . 4 2 . . . . 1 6 . . . . 3 . . . Investigation 5 | . 1 . . . 3 1 . . . . . . . . . . . . . . Extermination 6 | . . . . . . 1 . . . . . 3 . . . . 2 . . . Reinforcement 4 | . . . . . 1 . . . . . . 3 . . . . . . . . Assault 2 | . . . . . . . . . . . 1 . . . . . 1 . . . Garrison . | . . . . . . . . . . . . . . . . . . . . . Intercept . | . . . . . . . . . . . . . . . . . . . . . Searches Triggered . | . . . . . . . . . . . . . . . . . . . . . Construction Impeded 1 | . . . . . . . . . . . . 1 . . . . . . . . Haulers Reinforced . | . . . . . . . . . . . . . . . . . . . . . Active Scanning Responses . | . . . . . . . . . . . . . . . . . . . . . Cargo Convoy Interrupts 1 | . . . . . . . . . . . . 1 . . . . . . . . Stealth | -11 -10 -10 -10 -9 -8 -7 -6 -6 -6 -6 -5 -5 -5 -5 -5 -4 -4 -4 -4 -4 --------- Run | Yrd Mat Min Exi Min Mat Fac Fac Low Low Zio Pro Fac Upp Upp Zhi Pro Fac Upp Upp War Distress Signals 5 | . . . . . 3 . . . . . . 2 . . . . . . . . Communications Jammed 1 | . . . . . . . . . . . . 1 . . . . . . . . Distress Signals 1 | . . . . . . . . . . . . 1 . . . . . . . . Times Spotted 213 | . 15 3 . 6 29 6 3 14 4 . 21 27 7 9 . 13 4 6 5 41 Peak Tracking Total 15 | . 4 3 . 8 6 5 1 4 3 . 9 5 3 2 . 5 2 3 3 15 Tactical Retreats 12 | . . . . . 4 2 . 2 1 . 1 1 . . . 1 . . . . Traps | -11 -10 -10 -10 -9 -8 -7 -6 -6 -6 -6 -5 -5 -5 -5 -5 -4 -4 -4 -4 -4 ------- Run | Yrd Mat Min Exi Min Mat Fac Fac Low Low Zio Pro Fac Upp Upp Zhi Pro Fac Upp Upp War Traps Triggered 3 | . . . . . . 1 1 . . . . 1 . . . . . . . . Indirectly . | . . . . . . . . . . . . . . . . . . . . . Trap Hack Attempts . | . . . . . . . . . . . . . . . . . . . . . Triggered . | . . . . . . . . . . . . . . . . . . . . . Disarmed . | . . . . . . . . . . . . . . . . . . . . . Reprogrammed . | . . . . . . . . . . . . . . . . . . . . . Reused . | . . . . . . . . . . . . . . . . . . . . . Traps Extracted . | . . . . . . . . . . . . . . . . . . . . . Installed . | . . . . . . . . . . . . . . . . . . . . . Triggered 37 | . . . . . . . . . . . . 1 . . . . . . . 36 Machines | -11 -10 -10 -10 -9 -8 -7 -6 -6 -6 -6 -5 -5 -5 -5 -5 -4 -4 -4 -4 -4 ---------- Run | Yrd Mat Min Exi Min Mat Fac Fac Low Low Zio Pro Fac Upp Upp Zhi Pro Fac Upp Upp War Machines Disabled 14 | . . . . . . . . . 1 . . 5 . 4 1 . 2 . . 1 Max in Single Turn 4 | . . . . . . . . . 1 . . 4 . 4 1 . 2 . . 1 Garrison Access 2 | . . . . . . . . . . . . 1 . . . . 1 . . . Machines Repaired . | . . . . . . . . . . . . . . . . . . . . . Machines Dismantled . | . . . . . . . . . . . . . . . . . . . . . Machines Sabotaged . | . . . . . . . . . . . . . . . . . . . . . Overloaded Fab Kills . | . . . . . . . . . . . . . . . . . . . . . Hacking | -11 -10 -10 -10 -9 -8 -7 -6 -6 -6 -6 -5 -5 -5 -5 -5 -4 -4 -4 -4 -4 --------- Run | Yrd Mat Min Exi Min Mat Fac Fac Low Low Zio Pro Fac Upp Upp Zhi Pro Fac Upp Upp War Machines Accessed 50 | . 10 . 2 . 10 2 2 . 1 . . 5 1 . 9 . 4 1 . 3 Terminals 21 | . 7 . . . 8 2 1 . . . . 1 . . . . 2 . . . Fabricators 1 | . . . . . . . . . . . . 1 . . . . . . . . Repair Stations 4 | . 1 . . . . . . . . . . 1 . . . . 2 . . . Recycling Units 4 | . 2 . . . 1 . . . . . . 1 . . . . . . . . Scanalyzers 2 | . . . . . 1 . 1 . . . . . . . . . . . . . Garrison Access 1 | . . . . . . . . . . . . 1 . . . . . . . . Total Hacks 165 | . 31 . 5 . 34 3 2 . 1 . . 13 1 . 48 . 18 1 . 8 Successful 114 | . 15 . 5 . 19 1 1 . 1 . . 6 1 . 48 . 8 1 . 8 Failed 50 | . 15 . . . 15 2 1 . . . . 7 . . . . 10 . . . Catastrophic 1 | . 1 . . . . . . . . . . . . . . . . . . . Database Lockouts 1 | . 1 . . . . . . . . . . . . . . . . . . . Manual 54 | . 17 . 1 . 17 . . . . . . 5 . 2 2 . 2 . . 8 Terminals 70 | . 23 . . . 27 3 1 . . . . 1 . . . . 15 . . . Fabricators 2 | . . . . . . . . . . . . 2 . . . . . . . . Repair Stations 11 | . 4 . . . . . . . . . . 4 . . . . 3 . . . Recycling Units 10 | . 4 . . . 1 . . . . . . 5 . . . . . . . . Scanalyzers 7 | . . . . . 6 . 1 . . . . . . . . . . . . . Garrison Access 1 | . . . . . . . . . . . . 1 . . . . . . . . Terminal Hacks 90 | . 7 . 5 . 9 1 1 . 1 . . 1 1 . 48 . 7 1 . 8 Record 44 | . . . 4 . . . . . . . . . . . 36 . 2 . . 2 Part Schematic 4 | . . . . . . . . . . . . . . . 4 . . . . . Robot Analysis 10 | . 1 . . . 4 . . . . . . . . . 4 . 1 . . . Prototype ID Bank 12 | . 2 . . . 1 . . . . . . . . . 4 . . . . 5 Open Door 4 | . . . . . . . . . 1 . . . 1 . . . . 1 . 1 Open DSF 2 | . . . . . . 1 1 . . . . . . . . . . . . . Branch Access Points 1 | . . . . . . . . . . . . . . . . . 1 . . . Terminal Index 2 | . . . . . 1 . . . . . . . . . . . 1 . . . Scanalyzer Index 1 | . . . . . 1 . . . . . . . . . . . . . . . Garrison Index 1 | . . . . . . . . . . . . . . . . . 1 . . . Alert Level 3 | . 1 . . . . . . . . . . 1 . . . . 1 . . . Unreport Threat 2 | . 1 . . . 1 . . . . . . . . . . . . . . . Locate Traps 1 | . 1 . . . . . . . . . . . . . . . . . . . Hauler Manifests 1 | . . . . . 1 . . . . . . . . . . . . . . . Zone Layout 1 | . 1 . . . . . . . . . . . . . . . . . . . Derelict Proto ID Bank 1 | . . . 1 . . . . . . . . . . . . . . . . . Fabricator Hacks . | . . . . . . . . . . . . . . . . . . . . . Repair Station Hacks 6 | . 4 . . . . . . . . . . 1 . . . . 1 . . . Scan Component 3 | . 2 . . . . . . . . . . 1 . . . . . . . . Repair 2 | . 2 . . . . . . . . . . . . . . . . . . . Refit 1 | . . . . . . . . . . . . . . . . . 1 . . . Recycling Unit Hacks 3 | . . . . . . . . . . . . 3 . . . . . . . . Process 1 | . . . . . . . . . . . . 1 . . . . . . . . Report Inventory 1 | . . . . . . . . . . . . 1 . . . . . . . . Retrieve Matter 1 | . . . . . . . . . . . . 1 . . . . . . . . Scanalyzer 6 | . . . . . 6 . . . . . . . . . . . . . . . Insert Component 3 | . . . . . 3 . . . . . . . . . . . . . . . Analyze 3 | . . . . . 3 . . . . . . . . . . . . . . . Garrison Access Hacks 1 | . . . . . . . . . . . . 1 . . . . . . . . Seal Access 1 | . . . . . . . . . . . . 1 . . . . . . . . Unauthorized Hacks 8 | . 4 . . . 4 . . . . . . . . . . . . . . . Terminals 6 | . 3 . . . 3 . . . . . . . . . . . . . . . Assimilate 1 | . . . . . 1 . . . . . . . . . . . . . . . Botnet 5 | . 3 . . . 2 . . . . . . . . . . . . . . . Fabricators . | . . . . . . . . . . . . . . . . . . . . . Repair Stations . | . . . . . . . . . . . . . . . . . . . . . Recycling Units 2 | . 1 . . . 1 . . . . . . . . . . . . . . . Tunnel 2 | . 1 . . . 1 . . . . . . . . . . . . . . . Scanalyzers . | . . . . . . . . . . . . . . . . . . . . . Garrison Access . | . . . . . . . . . . . . . . . . . . . . . Data Cores Recovered . | . . . . . . . . . . . . . . . . . . . . . Used . | . . . . . . . . . . . . . . . . . . . . . Hacking Detections 29 | . 9 . . . 9 2 1 . . . . 3 . 1 . . 4 . . . Full Trace Events 2 | . . . . . 2 . . . . . . . . . . . . . . . Feedback Events . | . . . . . . . . . . . . . . . . . . . . . Feedback Blocked . | . . . . . . . . . . . . . . . . . . . . . Robot Schematics Acquired 3 | . . . . . . . . . . 3 . . . . . . . . . . Robots Built . | . . . . . . . . . . . . . . . . . . . . . Authchips . | . . . . . . . . . . . . . . . . . . . . . Time . | . . . . . . . . . . . . . . . . . . . . . Total Robot Build Rating . | . . . . . . . . . . . . . . . . . . . . . Part Schematics Acquired 23 | . . . . . 3 . . . . 16 . . . . 4 . . . . . Parts Built . | . . . . . . . . . . . . . . . . . . . . . Authchips . | . . . . . . . . . . . . . . . . . . . . . Time . | . . . . . . . . . . . . . . . . . . . . . Total Part Build Rating . | . . . . . . . . . . . . . . . . . . . . . Parts Repaired 2 | . 2 . . . . . . . . . . . . . . . . . . . Time 52 | . 52 . . . . . . . . . . . . . . . . . . . Parts Recycled . | . . . . . . . . . . . . . . . . . . . . . Recycled Matter 103 | . . . . . . . . . . . . 103 . . . . . . . . Retrieved Matter 134 | . . . . . . . . . . . . 134 . . . . . . . . Retrieved Components . | . . . . . . . . . . . . . . . . . . . . . Parts Scanalyzed 3 | . . . . . 3 . . . . . . . . . . . . . . . Part Schematics Acquired 3 | . . . . . 3 . . . . . . . . . . . . . . . Parts Damaged . | . . . . . . . . . . . . . . . . . . . . . Bothacking | -11 -10 -10 -10 -9 -8 -7 -6 -6 -6 -6 -5 -5 -5 -5 -5 -4 -4 -4 -4 -4 ------------ Run | Yrd Mat Min Exi Min Mat Fac Fac Low Low Zio Pro Fac Upp Upp Zhi Pro Fac Upp Upp War Used RIF Installer . | . . . . . . . . . . . . . . . . . . . . . Robots Hacked . | . . . . . . . . . . . . . . . . . . . . . Non-combat . | . . . . . . . . . . . . . . . . . . . . . Combat . | . . . . . . . . . . . . . . . . . . . . . Robot Hacks Applied . | . . . . . . . . . . . . . . . . . . . . . Relay Couplers Released . | . . . . . . . . . . . . . . . . . . . . . Fabnet Peak Effective % . | . . . . . . . . . . . . . . . . . . . . . Robots Rewired 11 | . . . . . . . . . 4 . 2 . . . . . . . . 5 Allies Hacked 3 | . . . . . . . . . . . . . . . . . . . . 3 Hacks Repelled . | . . . . . . . . . . . . . . . . . . . . . Allies | -11 -10 -10 -10 -9 -8 -7 -6 -6 -6 -6 -5 -5 -5 -5 -5 -4 -4 -4 -4 -4 -------- Run | Yrd Mat Min Exi Min Mat Fac Fac Low Low Zio Pro Fac Upp Upp Zhi Pro Fac Upp Upp War Total Allies 19 | . . . . . 1 . . . 4 6 2 . . . . . 1 . . 5 Largest Group 6 | . . . . . 1 . . . 4 6 6 1 . . . . 1 1 1 5 Highest-Rated Group 273 | . . . . . 10 . . . 113 147 147 49 . . . . 10 10 10 273 Highest-Rated Ally 56 | . . . . . 10 . . . 31 31 49 49 . . . . 10 10 10 56 Total Orders 8 | . . . . . . . . . . . . . . 6 . . 2 . . . EXPLORE 3 | . . . . . . . . . . . . . . 3 . . . . . . RETURN 5 | . . . . . . . . . . . . . . 3 . . 2 . . . Ally Attacks 104 | . . . . . . . . . 15 . 73 2 . . . . . . . 14 Total Damage 2270 | . . . . . . . . . 297 . 1321 43 . . . . . . . 609 Kills 16 | . . . . . . . . . . . 10 1 . . . . . . . 5 Allies Corrupted 1 | . . . . . . . . . . . . . . . . . . . . 1 Allies Melted 2 | . . . . . . . . . . . . . . . . . . . . 2 Intel | -11 -10 -10 -10 -9 -8 -7 -6 -6 -6 -6 -5 -5 -5 -5 -5 -4 -4 -4 -4 -4 ------- Run | Yrd Mat Min Exi Min Mat Fac Fac Low Low Zio Pro Fac Upp Upp Zhi Pro Fac Upp Upp War Robot Analysis Total 10 | . 1 . . . 4 . . . . . . . . . 4 . 1 . . . Derelict Logs Recovered 8 | . . . . 1 . . . 1 2 1 1 . . . . . . . 2 . Drone Launches 6 | . . . . . . . . . . . . . . 4 . . 2 . . . Drone Recoveries 5 | . . . . . . . . . . . . . . 3 . . 2 . . . Exploration | -11 -10 -10 -10 -9 -8 -7 -6 -6 -6 -6 -5 -5 -5 -5 -5 -4 -4 -4 -4 -4 ------------- Run | Yrd Mat Min Exi Min Mat Fac Fac Low Low Zio Pro Fac Upp Upp Zhi Pro Fac Upp Upp War Turns Passed 25529 | 2 2366 186 1135 188 1859 956 359 625 830 1847 732 2330 1135 1998 1357 486 729 710 3349 2350 Spaces Moved 9979 | 2 871 72 465 79 965 526 215 344 449 917 375 1057 560 471 257 230 341 324 628 831 Core 176 | . . . . . . . . . . . . . . 78 92 . . . . 6 Treads 4634 | . 88 72 465 79 965 526 215 344 221 783 375 46 148 245 . . 62 . . . Legs 831 | 2 783 . . . . . . . . . . 4 . 6 36 . . . . . Wheels 1923 | . . . . . . . . . 228 134 . 1007 412 142 . . . . . . Hover 2415 | . . . . . . . . . . . . . . . 129 230 279 324 628 825 Flight . | . . . . . . . . . . . . . . . . . . . . . Fastest Speed 112 | 120 120 240 240 240 160 160 160 160 160 160 160 120 175 160 122 142 112 198 138 193 Average Speed 231 | 120 240 240 240 240 160 161 160 160 167 197 160 174 192 387 508 174 184 198 517 247 Slowest Speed 1300 | 120 320 240 240 240 160 240 160 160 175 240 160 400 240 1300 1300 192 480 198 1060 1150 Overloaded Moves . | . . . . . . . . . . . . . . . . . . . . . Propulsion Burnouts . | . . . . . . . . . . . . . . . . . . . . . Robots Hopped . | . . . . . . . . . . . . . . . . . . . . . Cave-ins Triggered . | . . . . . . . . . . . . . . . . . . . . . Teleports 1 | . . . . . . . . . . . . . . . . . . . . 1 Exploration Rate (%) 47 | 2 96 17 87 32 49 13 5 50 58 85 60 22 51 62 62 38 5 45 59 90 Regions Visited 20 Branch Regions 14 Pre-discovered Areas 9 | . 1 . 1 . 1 . . . 1 1 . . . . 3 . . . 1 . Known Exits Taken 4 | . . . . . . . . 1 . . . 1 . . . 1 1 . . . Unknown Exits Taken 16 | 1 1 1 1 1 1 1 1 . 1 1 1 . 1 1 1 . . 1 1 . Scrap Searched 16 | . . . . 1 . . . 2 3 . 3 . 1 3 . . . 1 2 . Spaces Dug 23 | . . . . . . 2 . . . . . 15 . . . . 6 . . . Terrain Destroyed 523 | . . . . . 7 2 . 21 . . 73 111 32 27 . 67 27 12 12 132 Melee 12 | . . . . . . 2 . . . . . 4 . . . . 6 . . . Projectile 125 | . . . . . . . . . . . 12 45 5 14 . 11 3 12 12 11 AOE 386 | . . . . . 7 . . 21 . . 61 62 27 13 . 56 18 . . 121 Terrain Rammed . | . . . . . . . . . . . . . . . . . . . . . Walls Destroyed . | . . . . . . . . . . . . . . . . . . . . . Machines Disabled . | . . . . . . . . . . . . . . . . . . . . . Actions | -11 -10 -10 -10 -9 -8 -7 -6 -6 -6 -6 -5 -5 -5 -5 -5 -4 -4 -4 -4 -4 --------- Run | Yrd Mat Min Exi Min Mat Fac Fac Low Low Zio Pro Fac Upp Upp Zhi Pro Fac Upp Upp War Total 11588 | 1 1020 76 489 78 1167 600 226 375 514 949 467 1396 588 611 297 264 413 355 685 1017 Wait 492 | . 34 . 6 . 76 32 . . . 4 11 181 . 104 . . 23 6 . 15 Move 9959 | 1 870 71 464 78 964 525 214 343 448 916 374 1056 559 470 256 229 340 323 627 831 Hop . | . . . . . . . . . . . . . . . . . . . . . Pick Up 167 | . 26 . 8 . 20 7 4 1 9 8 3 22 5 4 9 1 10 2 13 15 Fast Attach 38 | . 3 . . . 2 . . . . 2 4 6 . 3 8 . 5 . 2 3 Attach 93 | . 4 . . . 11 2 3 2 2 1 1 15 3 3 5 4 5 3 8 21 Detach 5 | . . . . . . . . . . . . 1 . . 1 1 1 . . 1 Swap 68 | . 3 . 2 . 6 5 . 2 3 7 9 9 2 1 . . 8 1 2 8 Drop 133 | . 11 . 9 . 18 7 2 . 6 10 9 15 2 3 11 1 6 1 8 14 Fire 452 | . 69 5 . . 69 20 3 27 9 . 25 86 17 23 . 28 8 19 19 25 Melee 75 | . . . . . . 2 . . 1 1 . 5 . . 7 . 7 . 6 46 Ram . | . . . . . . . . . . . . . . . . . . . . . Kick . | . . . . . . . . . . . . . . . . . . . . . Crush 1 | . . . . . 1 . . . . . . . . . . . . . . . Escape Stasis . | . . . . . . . . . . . . . . . . . . . . . Rewire 105 | . . . . . . . . . 36 . 31 . . . . . . . . 38 Trap . | . . . . . . . . . . . . . . . . . . . . . Miscellaneous . | . . . . . . . . . . . . . . . . . . . . . Route ------- -11/Scrapyard -10/Materials (discovered 5 exits: [*Mat x3] / [*Min x2]) -10/Mines -10/Exiles (discovered 2 exits: [*Min x2]) -9/Mines -8/Materials (discovered 2 exits: *Fac / [*Sto]) -7/Factory -6/Factory -6/Lower Caves -6/Lower Caves -6/Zion -5/Proximity Caves -5/Factory (discovered 2 exits: Fac / *Upp) -5/Upper Caves -5/Upper Caves -5/Zhirov -4/Proximity Caves -4/Factory (discovered 3 exits: *Upp x2 / Arm) -4/Upper Caves -4/Upper Caves -4/Warlord (discovered 1 exit: [*Pro]) History --------- Turn | Location | Event 1 | -11/Scrapyard | Discovered new exit (range 1) 3 | -11/Scrapyard | Entered Materials 305 | -10/Materials | Build established: Mutant 567 | -10/Materials | Discovered new exit (range 10) 760 | -10/Materials | Discovered new exit (range 3) 1151 | -10/Materials | Discovered new exit (range 13) 1156 | -10/Materials | Central database locked down 1312 | -10/Materials | Repaired Assault Rifle 1434 | -10/Materials | Repaired Lgt. Armor Plating 1555 | -10/Materials | Discovered new exit (range 16) 1643 | -10/Materials | Discovered new exit (range 14) 2369 | -10/Materials | Entered Mines 2538 | -10/Mines | Deemed a non-threat by the Exiles lab entrance 2540 | -10/Mines | Discovered new exit (range 5) 2555 | -10/Mines | Entered Exiles 2627 | -10/Exiles | Discovered new exit (range 15) 2653 | -10/Exiles | Met 8R-AWN 2699 | -10/Exiles | Met EX-HEX 2766 | -10/Exiles | Met EX-BIN 2799 | -10/Exiles | Aligned with FarCom system 2802 | -10/Exiles | Given EX-Vault access code 2859 | -10/Exiles | Opened EX-Vault 2889 | -10/Exiles | Found YOLO Cannon 2951 | -10/Exiles | Warned to stay clear of 0b10 Research branches 3033 | -10/Exiles | Learned location of Zion (-6) 3052 | -10/Exiles | Met EX-DEC 3137 | -10/Exiles | Visited The Gauntlet 3565 | -10/Exiles | Discovered new exit (range 15) 3690 | -10/Exiles | Left Exiles lab with YOLO Cannon 3690 | -10/Exiles | Entered Mines 3700 | -9/Mines | Learned Materials interactive machine intel 3849 | -9/Mines | Discovered new exit (range 11) 3864 | -9/Mines | Assembled infested the area 3869 | -9/Mines | Assisted by a Guerilla fighting off Assembled 3878 | -9/Mines | Entered Materials 3878 | -8/Materials | Evolved 4 slots: Propulsion x2, Utility x2 3879 | -8/Materials | Loaded intel: 19 interactive machine locations 4746 | -8/Materials | Build established: Scavenger-Mutant 5384 | -8/Materials | Discovered new exit (range 3) 5405 | -8/Materials | Discovered new exit (range 16) 5737 | -8/Materials | Entered Factory 5737 | -7/Factory | Evolved 2 slots: Utility x2 5863 | -7/Factory | Identified exit to DSF 6060 | -7/Factory | Build established: Mutant 6616 | -7/Factory | Discovered new exit (range 6) 6693 | -7/Factory | Entered another Factory area 6693 | -6/Factory | Evolved 2 slots: Power x1, Utility x1 6702 | -6/Factory | Identified exit to DSF 6919 | -6/Factory | Discovered new exit (range 14) 6989 | -6/Factory | Build established: Scavenger-Mutant 7052 | -6/Factory | Entered Lower Caves 7183 | -6/Lower Caves | Encountered a Warlord checkpoint 7605 | -6/Lower Caves | Identified exit to Lower Caves 7677 | -6/Lower Caves | Entered another Lower Caves area 7944 | -6/Lower Caves | Attacked by a delusional Derelict stockpiling Unaware 8085 | -6/Lower Caves | Ambushed by research squad 8132 | -6/Lower Caves | Lost 4 allies 8169 | -6/Lower Caves | Learned location of 2 exits from Factory 8247 | -6/Lower Caves | Encountered a Warlord checkpoint 8493 | -6/Lower Caves | Discovered new exit (range 8) 8507 | -6/Lower Caves | Entered Zion 8560 | -6/Zion | System corruption cleaned by Quarantine Array 8668 | -6/Zion | Learned location of Extension (-5) 8728 | -6/Zion | Discovered new exit (range 12) 8742 | -6/Zion | Given the Hacking Drone Bay 8744 | -6/Zion | Found Prototype Device 8846 | -6/Zion | Learned Factory emergency access door positions 8916 | -6/Zion | Gained Derelict followers 9106 | -6/Zion | Gained Derelict followers 9207 | -6/Zion | Found Prototype Special Weapon 9211 | -6/Zion | Found Prototype Special Weapon 9214 | -6/Zion | Identified RU-N14's Throwing Claymores (x2) 9223 | -6/Zion | Found RU-N14's Throwing Claymores 9228 | -6/Zion | Found RU-N14's Throwing Claymores 9411 | -6/Zion | Rebuked by Imprinter 9533 | -6/Zion | Acquired unknown access codes intercepted by a Zionite 10354 | -6/Zion | Entered Proximity Caves 10354 | -5/Proximity Caves | Accompanied by 6 allies 10356 | -5/Proximity Caves | Attracted the attention of an 0b10 checkpoint 10484 | -5/Proximity Caves | Learned Factory garrison access intel 10570 | -5/Proximity Caves | Attracted the attention of an 0b10 outpost 10617 | -5/Proximity Caves | Lost 5 allies 11043 | -5/Proximity Caves | Discovered new exit (range 3) 11086 | -5/Proximity Caves | Entered Factory 11086 | -5/Factory | Accompanied by 1 ally 11086 | -5/Factory | Evolved 2 slots: Propulsion x2 11087 | -5/Factory | Identified exit to Factory 11087 | -5/Factory | Identified exit to Upper Caves 11089 | -5/Factory | Loaded intel: 4 garrison access locations 11479 | -5/Factory | Found Prototype Launcher 11479 | -5/Factory | Identified Mni. Smartbomb Launcher 11830 | -5/Factory | System corruption reached 10% 11860 | -5/Factory | Lost 3 parts (1p1n1u) 11957 | -5/Factory | Lost 7 parts (1p3n3u) 12004 | -5/Factory | Lost 4 parts (2n1u1w) 12081 | -5/Factory | Cargo convoy interrupted 13416 | -5/Factory | Entered Upper Caves 13480 | -5/Upper Caves | Spotted B-75 Beast 14394 | -5/Upper Caves | Discovered new exit (range 3) 14551 | -5/Upper Caves | Entered another Upper Caves area 14645 | -5/Upper Caves | Spotted B-75 Beast 15026 | -5/Upper Caves | Discovered new exit (range 38) 15263 | -5/Upper Caves | Attracted the attention of an 0b10 base 15342 | -5/Upper Caves | Lost 5 parts (2p2n1u) 16549 | -5/Upper Caves | Entered Zhirov 16549 | -5/Zhirov | Discovered new exit (range 4) 16809 | -5/Zhirov | Met Zhirov 17350 | -5/Zhirov | Found Alien Artifact 17540 | -5/Zhirov | Found Alien Artifact 17822 | -5/Zhirov | Learned location of Quarantine (-3) 17822 | -5/Zhirov | Learned location of Testing (-2) 17822 | -5/Zhirov | Learned location of Command (-1) 17848 | -5/Zhirov | Zhirov requested help retrieving the SGEMP Prototype 17906 | -5/Zhirov | Entered Proximity Caves 18046 | -4/Proximity Caves | Attracted the attention of an 0b10 checkpoint 18338 | -4/Proximity Caves | Lost 5 parts (3n1u1w) 18383 | -4/Proximity Caves | Discovered exit to Factory (range 6) 18392 | -4/Proximity Caves | Entered Factory 18392 | -4/Factory | Evolved 2 slots: Utility x2 18410 | -4/Factory | Identified Hacking Drone Bay 18729 | -4/Factory | Build established: Hacker-Mutant 18857 | -4/Factory | Identified exit to Upper Caves 18857 | -4/Factory | Identified exit to Armory 19121 | -4/Factory | Entered Upper Caves 19121 | -4/Upper Caves | Accompanied by 1 ally 19150 | -4/Upper Caves | Encountered a Warlord checkpoint 19761 | -4/Upper Caves | Discovered new exit (range 10) 19772 | -4/Upper Caves | Attracted the attention of an 0b10 checkpoint 19831 | -4/Upper Caves | Entered another Upper Caves area 19831 | -4/Upper Caves | Accompanied by 1 ally 20011 | -4/Upper Caves | Encountered a Warlord checkpoint 20024 | -4/Upper Caves | Learned location of Armory (-4) 20031 | -4/Upper Caves | Learned Research trap positions 20218 | -4/Upper Caves | Lost 7 parts (3n3u1w) 20360 | -4/Upper Caves | Attracted the attention of an 0b10 checkpoint 20631 | -4/Upper Caves | Discovered new exit (range 12) 23180 | -4/Upper Caves | Entered Warlord 23298 | -4/Warlord | Discovered new exit (range 14) 23940 | -4/Warlord | Found Prototype Device 23941 | -4/Warlord | Identified Minesniffer Drone Bay 24480 | -4/Warlord | Warlord's base attacked by MAIN.C 24586 | -4/Warlord | Met Warlord 24830 | -4/Warlord | Warlord forces counterattacked 25044 | -4/Warlord | Found Prototype Special Weapon 25044 | -4/Warlord | Identified RU-N14's Throwing Claymores v3 25050 | -4/Warlord | Found RU-N14's Throwing Claymores v3 25054 | -4/Warlord | Found RU-N14's Throwing Claymores v3 25057 | -4/Warlord | Found RU-N14's Throwing Claymores v3 25060 | -4/Warlord | Found RU-N14's Throwing Claymores v3 25155 | -4/Warlord | Warlord base infiltrated, sounded retreat 25210 | -4/Warlord | Found Prototype Energy Gun 25210 | -4/Warlord | Identified Vortex Rail 25212 | -4/Warlord | Lost 9 allies 25215 | -4/Warlord | Found Vortex Rail 25262 | -4/Warlord | Spotted Executioner 25275 | -4/Warlord | Identified Transdimensional Reconstructor 25275 | -4/Warlord | Warped through subspace 25304 | -4/Warlord | Lost 3 parts (1n2u) 25394 | -4/Warlord | Spotted Striker 25394 | -4/Warlord | Spotted Executioner 25413 | -4/Warlord | Destroyed Executioner 25428 | -4/Warlord | Core integrity fell below 50% 25433 | -4/Warlord | Identified Integrated Dissipator 25433 | -4/Warlord | Installed Integrated Dissipator, increased core heat dissipation (+20) 25441 | -4/Warlord | Destroyed 15 combat bots 25447 | -4/Warlord | Destroyed Striker 25449 | -4/Warlord | Core integrity fell below 20% 25481 | -4/Warlord | Lost 20 parts (2p7n7u4w) 25520 | -4/Warlord | Spotted Striker 25530 | -4/Warlord | Destroyed by G-73 Enforcer with Phase Gun Last Messages --------------- 25479_ The unstable cave ceiling collapses. 25480_ ANNOUNCEMENT: Detected 3 Grunt squads, 1 Saboteur squad, with prototype support. 25481_ The unstable cave ceiling collapses. 25496_ XT%F4/WOS12KOZMW %XJ UERKS4QV6 25502_ The unstable cave ceiling collapses. 25521_ System corrupted: FCS attempts to trigger YOLO Cannon. 25521_ System corrupted: YOLO Cannon misfires. 25524_ The unstable cave ceiling collapses. 25524_ E-15 Imp destroyed. 25526_ Critical hit (Burn: +50). 25527_ Imp. Target Analyzer blown off. 25527_ E-15 Imp destroyed. 25528_ Adv. Heat Sink melted. 25528_ G-73 Enforcer destroyed. 25528_ Cesium-ion Thruster melted. 25528_ Segregator melted. 25528_ E-15 Imp destroyed. 25529_ The unstable cave ceiling collapses. Map ----- +----------------------------------------------------+ | #"""""""#??????????????????????????????????????? | | #"" " ""#?????????????????####?????????????????? | | #""" """#????????????????## ##??????????#?????? | | ^^#"" ""#???????????????## #?????????? ###?? | | ### ###???????????????# #?????????? ##? | | ####+###????????????????# ##????????? < #? | | ##???????????????# #??????? ?? | | #???????????????# ##?????? #?? | | ##???????????????## #??????? #??? | | "" #?????????????????### ##?????? #??? | | "" #???????????????????## #?????? #???? | | """ ##????????????????????## #???### #????? | | """ #??????????????????????# ##### ##???? | | "" % #??????????????????????# ###? | | "" #??????????????????????## ### ### ## | | #???????????????????????## #"?# # | | #????????????????????????### "#?# ? | | #??????""#?????????????##?## #?# #? | | #?????#""#????????????? ##### ### #? | | #?????#""#???????????## # #"# ## | | """" #######""#####????### ; " # # | | === # "" "###### ## ## | | [%! % [""% "" # # ##? | | *][ %[ "" % [%* % #g # ##?? | | ! % = =K # #?? | | =!* % [%=%@=% % % %g g ! #?? | | =!/ %[= [[=%%%= % gg ## #?? | | [! [=%%!% % %% = gi ## #?? | | # %[ ! ! "" [ = # g ## ##? | | # /"" = %% ## # ### #? | | =% "" ! # # #? | | ## # # "";## # ### ## ## ## #? | | % # % ## #""#########?###?##### # #? | | !% #####""#????????????????# ## ##? | | #???#""#???????????????## # ## #?? | | # ###????""????????????????# # # ##?? | | * # #???????????????????????# #? #??? | | * # ##???????????????????????# ##??### #??? | | # #????????????????????????# #?????## ##?? | | +#### #???????????????????????## ##????## #?? | | #?## ##?????????????????????## ##??## #?? | | ### #?????????????????????# ##?# #?? | | #?????????????????##### ## ### #?? | | #????????????????## # #### ## #?? | | #????????????????# #?## ## #?? | | ## #????????????????# ##?# ## ##?? | | ####+######?????????????# ## #?## #??? | | # #?????????????###### #??### ##??? | | # ] ! #?????????????????# ##????######???? | | # [! ! #?????????????????#####??????????????? | +----------------------------------------------------+ Best States ------------- Heat Dissipation 73 Energy Generation 41 Energy Capacity 565 Matter Stores 300 Matter Capacity 300 Sight Range 16 Terrain Scan Density 10 Jamming Range 14 Armor Coverage 750 Resistance: KI 20 Resistance: TH 30 Resistance: EM 15 Power Shielding 90 Propulsion Shielding 66 Weapon Cycling 15 Phase Shifting 5 Evasion (%) 55 Targeting Accuracy 13 Target Analysis 6 Recoil Reduction 4 Particle Charging 15 Kinecelleration 40 Offensive Hacking 14 Defensive Hacking 14 Item Schematics ----------------- Hcp. Storage Unit | -8/Materials | Scanalyzed Rocket Launcher | -8/Materials | Scanalyzed Particle Charger | -8/Materials | Scanalyzed Nuclear Pulse Thruster | -6/Zion | Archive Imp. Component Analysis Suite | -6/Zion | Archive Thermal Shield | -6/Zion | Archive Recoil Nullifier | -6/Zion | Archive Angular Momentum Engine | -6/Zion | Archive KE Penetrator | -6/Zion | Archive System Guard | -6/Zion | Archive Hvy. Gauss Cannon | -6/Zion | Archive Impulse Thruster | -6/Zion | Archive Force Field | -6/Zion | Archive Field Propulsion Drive | -6/Zion | Archive Hvy. Shock Bomb Launcher | -6/Zion | Archive Focal Shield | -6/Zion | Archive Imp. Particle Charger | -6/Zion | Archive Adv. Drone Bay | -6/Zion | Archive Imp. KE Penetrator | -6/Zion | Archive Assault Drone Bay | -5/Zhirov | Free Exp. Heat Sink | -5/Zhirov | Free Exp. Optical Array | -5/Zhirov | Free Imp. Arc Thrower | -5/Zhirov | Free Robot Schematics ------------------ K-01 Serf | -6/Zion | Archive R-10 Processor | -6/Zion | Archive M-22 Extractor | -6/Zion | Archive Fabricated ------------ Nothing Alien Tech Used ----------------- Transdimensional Reconstructor Integrated Dissipator Achievements -------------- None Challenges ------------ None Game ------ Seed BarrageVariableStorage Manual? 0 Play Time 03:12:33 Cumulative 204.5 hours Start 2024.04.04 @ 19:41:42 End 2024.04.04 @ 22:58:24 Sessions 1 Manual Loads 0 Difficulty Rogue Special Mode None Game No. 153 Rogue 143 Adventurer 0 Explorer 10 Win Type - Total 3 Types 3/0/0/0/0/0/0/0/0 Lore% 61 Gallery% 70 Achievement% 53 Wizard Run 0 Options --------- Layout 1 ASCII 0 Keyboard 0 Movement Arrows Keybinds 1 Fullscreen 1 Font 24/Smallcaps Map View 50x35 Zoom Use 0% Tactical HUD 1 Map Filters NONE Filters NONE Steam 1 RUN: 62b2a855-dcd8-4bd3-9d2a-b8159262baf8